Cogmind - Beta 12 --- EXPLORER MODE // 2024.02.19 @ 18:46:13 Player: daffie Result: Destroyed by S-27 Virus with Autogun Performance ------------- Evolutions (3) 1500 Regions Visited (6) 1200 Robots Destroyed (111) 555 Value Destroyed (5314) 5314 Prototype IDs (9) 180 Alien Tech Used (0) 0 Bonus (2073) 2073 TOTAL SCORE: 10822 Bonus ------- High Alert Combat Kills 1739 Follower Combat Kills 482 Entered Garrisons 200 Used RIF Installer 500 Friendly Fire -848 Cogmind --------- Core Integrity 0/700 Matter 300/300 Energy 100/100 System Corruption 4% Temperature Cool (0) Movement Core (50) Location -7/Factory Parts ------- > --- POWER (2) -------- (None) > --- PROPULSION (4) --- (None) > --- UTILITY (5) ------ Armor Integrity Analyzer > --- WEAPON (3) ------- Mace > --- INVENTORY (5) ---- Thief Drone Bay (3/3) Gauss Rifle Remote Datajack Peak State ------------ > --- POWER ------------ Reinforced Deuterium Engine Neutrino Core > --- PROPULSION ------- Heavy Treads Xenon Bombardment Thruster Xenon Bombardment Thruster > --- UTILITY ---------- Advanced Heat Sink Improved Weapon Cycler Relay Coupler [Behemoth] > --- WEAPON ----------- Improved EM Pulse Cannon Improved EM Pulse Cannon Long-range Proton Cannon > --- INVENTORY -------- Improved Kinecellerator Thief Drone Bay Improved Arc Projector Magnetic Acceleration Cannon Great Maul [Rating: 63] Favorites ----------- Power Reinforced Deuterium Engine Engine Reinforced Deuterium Engine Power Core Neutrino Core Propulsion Xenon Bombardment Thruster Treads Heavy Treads Leg Carbon-fiber Leg Hover Unit Cooled Airjet Flight Unit Xenon Bombardment Thruster Utility Advanced Heat Sink Device Advanced Heat Sink Storage Medium Storage Unit Processor Target Analyzer Hackware Relay Coupler [Behemoth] Protection Light Armor Plating Weapon Gatling Laser Energy Gun Gatling Laser Energy Cannon Long-range Proton Cannon Ballistic Gun Gauss Rifle Ballistic Cannon Magnetic Acceleration Cannon Launcher Precision Grenade Launcher Special Weapon Welding Torch Impact Weapon Great Maul Slashing Weapon Greatsword Build | -11 -10 -9 -9 -8 -8 -7 ------- Run | Jun Mat Mat Min Mat Gar Fac Slots Evolved 7 | . 1 2 . 2 . 2 Power 1 | . . . . 1 . . Propulsion 2 | . 1 1 . . . . Utility 3 | . . 1 . . . 2 Weapon 1 | . . . . 1 . . Parts Attached 159 | 2 12 8 . 42 48 47 Power 27 | . 1 . . 11 5 10 Engine 20 | . 1 . . 7 3 9 Core 7 | . . . . 4 2 1 Reactor . | . . . . . . . Propulsion 26 | . 5 4 . 8 1 8 Treads 5 | . . . . . 1 4 Leg 9 | . 5 4 . . . . Wheel . | . . . . . . . Hover 4 | . . . . . . 4 Flight 8 | . . . . 8 . . Utility 32 | 2 1 2 . 8 10 9 Device 17 | . 1 . . 6 6 4 Storage 2 | 1 . 1 . . . . Processor 4 | . . . . 1 1 2 Hackware 2 | . . . . . 2 . Protection 7 | 1 . 1 . 1 1 3 Artifact . | . . . . . . . Weapon 74 | . 5 2 . 15 32 20 Energy Gun 27 | . 5 2 . 7 8 5 Energy Cannon 9 | . . . . . 9 . Ballistic Gun 18 | . . . . 5 6 7 Ballistic Cannon 12 | . . . . 3 5 4 Launcher 1 | . . . . . . 1 Special Weapon 1 | . . . . . . 1 Impact Weapon 5 | . . . . . 4 1 Slashing Weapon 1 | . . . . . . 1 Piercing Weapon . | . . . . . . . Special Melee Weapon . | . . . . . . . Unidentified Prototypes 9 | . 2 . . 5 . 2 Corrupted Parts 1 | . . . . . 1 . System Corruption 2 | . . . . . 2 . Parts Lost 38 | . 2 . . 1 11 24 Power 5 | . 1 . . . 1 3 Propulsion 9 | . . . . 1 4 4 Utility 15 | . . . . . 5 10 Weapon 9 | . 1 . . . 1 7 Highest Loss Streak 8 | . 1 . . 1 3 8 To Critical Strikes . | . . . . . . . Average Slot Usage (%) 78 | . 73 92 100 96 75 77 Engine 8 | . 11 10 10 6 7 10 Core 4 | . . . . 7 5 . Treads 5 | . . . . . 7 6 Leg 3 | . 13 35 40 8 . . Hover 1 | . . . . . . 11 Flight 8 | . . . . 24 8 . Device 14 | . 2 10 10 16 14 17 Storage 1 | . 9 7 10 . . . Processor 1 | . . . . 4 . 6 Hackware 2 | . . . . . 4 . Protection 2 | . 12 10 10 1 . 5 Energy Gun 11 | . 23 19 20 9 12 3 Energy Cannon 1 | . . . . . 1 . Ballistic Gun 2 | . . . . . 2 4 Ballistic Cannon 3 | . . . . 14 1 6 Impact Weapon 4 | . . . . . 5 1 Naked Turns . | . . . . . . . Heaviest Build 57 | 13 27 28 28 38 55 57 Greatest Support 112 | 3 39 60 60 60 76 112 Greatest Overweight (x) 13 | 4 8 . . 4 3 13 Average Overweight (x) . | 2 2 . . . . . Largest Inventory Capacity 10 | 10 10 10 10 10 5 5 Average Capacity 5 | 9 9 8 10 5 5 5 Most Carried 5 | . 2 4 2 5 5 5 Average Carried 4 | . . . 1 3 4 3 Final Capacity 10 | 10 5 10 10 5 5 5 Final Carried 5 | . . 1 2 2 5 3 Class Distribution -------------------- 61% | Hacker-Mutant 15% | Hacker-Gunner 7% | Hacker-Sprinter 5% | Scavenger-Mutant 3% | Commander-Mutant Dominant Class ---------------- Hacker-Mutant | -10/Materials Hacker-Mutant | -9/Materials Hacker-Mutant | -9/Mines Hacker-Sprinter | -8/Materials Hacker-Mutant | -8/Garrison Hacker-Mutant | -7/Factory Resources | -11 -10 -9 -9 -8 -8 -7 ----------- Run | Jun Mat Mat Min Mat Gar Fac Matter Collected 3496 | 97 120 221 . 1115 1298 645 Remotely 1301 | . . . . 599 702 . Salvage Created 4863 | . 186 493 . 1409 2027 748 Parts 242 | . 13 30 . 64 95 40 Haulers Intercepted 7 | . 1 1 . 5 . . Recyclers Shooed 5 | . . . . 5 . . Parts Field Recycled . | . . . . . . . Retrieved Matter . | . . . . . . . Parts Self-Destructed . | . . . . . . . Prevented . | . . . . . . . Kills | -11 -10 -9 -9 -8 -8 -7 ------- Run | Jun Mat Mat Min Mat Gar Fac Combat Hostiles Destroyed 82 | . 4 6 . 23 34 15 Melee 4 | . . . . . 2 2 Guns 43 | . 4 5 . 4 21 9 Cannons 29 | . . . . 19 9 1 AOE 2 | . . . . . . 2 Classes Destroyed 15 | . 4 3 . 4 3 1 Worker 5 | . . . . 3 . 2 Builder 1 | . . 1 . . . . Hauler 7 | . 1 1 . 5 . . Recycler 4 | . . 1 . 3 . . Operator 1 | . . . . 1 . . Watcher 8 | . 2 . . 4 1 1 Swarmer 8 | . 2 . . 2 3 1 Grunt 34 | . 2 3 . 10 9 10 Brawler 3 | . . . . . 3 . Duelist 2 | . . . . 1 . 1 Sentry 29 | . . 3 . 9 15 2 Specialist 1 | . . . . . . 1 Hunter 2 | . . . . 1 1 . Programmer 2 | . . . . . 2 . Behemoth 1 | . . . . . 1 . Thug 1 | . . . . 1 . . Butcher 1 | . . . . . 1 . Guerrilla 1 | . . . . . 1 . Best Kill Streak 7 | . 3 5 . 7 5 6 Combat Bots Only 5 | . 2 2 . 3 5 5 Max Kills in Single Turn 3 | . 1 1 . 2 2 3 Gunslinging . | . . . . . . . Exploded 2 | . . . . . . 2 Melee 1 | . . . . . 1 1 Uniques/NPCs Destroyed . | . . . . . . . Combat | -11 -10 -9 -9 -8 -8 -7 -------- Run | Jun Mat Mat Min Mat Gar Fac Damage Taken 5209 | . 47 162 9 452 1937 2602 Core 1230 | . . . . 144 380 706 Absorbed by Shields 32 | . . . . . 32 . Redirected to Shielding 207 | . . . . . . 207 Core Remaining (%) 76 | 100 100 . 100 . 4 . Volleys Fired 242 | . 12 23 1 60 98 48 Largest 3 | . 2 2 2 3 3 3 Hottest 241 | . 130 100 100 135 241 173 Shots Fired 587 | . 24 46 2 173 260 82 Gun 407 | . 24 46 2 56 213 66 Cannon 173 | . . . . 117 47 9 Launcher . | . . . . . . . Special 7 | . . . . . . 7 Kinetic 338 | . . . . 120 167 51 Thermal 96 | . 14 . . . 57 25 Explosive . | . . . . . . . Electromagnetic 153 | . 10 46 2 53 36 6 Robot Hit Streak 37 | . 20 34 . 30 37 22 Robot Miss Streak 9 | . 5 1 . 9 3 2 Penetration Max 1 | . . . . . . 1 Secondary Targets 5 | . . 2 . . 3 . Max Gunslinging Chain 1 | . . 1 . . 1 . Shots Hit Robots 457 | . 23 35 . 137 190 72 Core Hits 304 | . 22 15 . 138 77 52 Critical Kills 3 | . . . . . 2 1 Critical Parts Destroyed 9 | . . . . . 8 1 Critical Strikes 16 | . . . . . 13 3 Destroy 2 | . . . . . 1 1 Corrupt 1 | . . . . . 1 . Smash 12 | . . . . . 11 1 Sever 1 | . . . . . . 1 Melee Attacks 129 | . . . . . 116 13 Impact 122 | . . . . . 116 6 Slashing 7 | . . . . . . 7 Piercing . | . . . . . . . Sneak Attacks 4 | . . . . . 4 . Combat Hostiles 1 | . . . . . 1 . Follow-up Attacks . | . . . . . . . Damage Inflicted 11538 | . 357 705 . 2880 5078 2518 Guns 5253 | . 317 677 . 827 2105 1327 Cannons 2717 | . . . . 1796 731 190 Explosions 1036 | . 40 25 . 257 165 549 Melee 2429 | . . . . . 2059 370 Ramming 101 | . . 3 . . 18 80 Kinetic 4439 | . . . . 1833 1678 928 Thermal 2245 | . 242 25 . 203 730 1045 Explosive 54 | . . . . 54 . . Electromagnetic 2270 | . 115 677 . 790 593 95 Impact 2216 | . . . . . 2059 157 Slashing 213 | . . . . . . 213 Piercing . | . . . . . . . Highest Corruption 15 | . 1 . . . 15 4 Average Corruption 5 | . 1 . . . 5 3 Corruption Purged . | . . . . . . . Corruption Blocked . | . . . . . . . Effects 133 | . 3 . . . 112 18 Message Errors 32 | . 1 . . . 26 5 Matter Fused 30 | . . . . . 26 4 Heat Flow Errors 25 | . 1 . . . 19 5 Energy Discharges 11 | . . . . . 11 . Data Loss (minor) 18 | . 1 . . . 16 1 Data Loss (major) 6 | . . . . . 5 1 Misfires 8 | . . . . . 7 1 Alerts 1 | . . . . . 1 . Weapon Failures 2 | . . . . . 1 1 Overload Shots . | . . . . . . . Overflow Damage 704 | . . . . 3 671 30 Projectiles 39 | . . . . 3 36 . Explosions 6 | . . . . . . 6 Melee 659 | . . . . . 635 24 Knockbacks 32 | . . . . 29 2 1 Impact 3 | . . . . . 2 1 Kinetic 29 | . . . . 29 . . Secondary . | . . . . . . . Self-Inflicted Damage 320 | . . . . 170 40 110 Shots 6 | . . . . 4 1 1 Rammed 4 | . . . . . . 4 Targets Rammed 5 | . . 1 . . . 4 Kicked 1 | . . 1 . . . . Crushed . | . . . . . . . Highest Temperature 499 | . 424 195 42 240 440 499 Average Temperature 112 | . 130 80 24 103 110 171 Received Heat Transfer 2304 | . 18 99 . 189 600 1398 Effects 23 | . 4 . . . 6 13 Shutdowns 4 | . . . . . 1 3 Energy Bleed 1 | . 1 . . . . . Interference 11 | . 2 . . . 4 5 Short Circuit 3 | . 1 . . . 1 1 Damage (major) 4 | . . . . . . 4 Siege Activations . | . . . . . . . Robots Corrupted 2 | . . 1 . . 1 . Combat Hostiles 1 | . . 1 . . . . Parts Fried 15 | . . 3 . 5 7 . Impact Corruptions 20 | . . . . . 17 3 Robots Melted . | . . . . . . . Combat Hostiles . | . . . . . . . Parts Melted . | . . . . . . . Heat Transferred 3439 | . 310 50 . 200 1525 1354 Parts Sabotaged . | . . . . . . . Parts Stolen . | . . . . . . . Parts Stripped . | . . . . . . . Power Chain Reactions 5 | . 1 1 . 2 1 . Missiles Intercepted . | . . . . . . . Alert | -11 -10 -9 -9 -8 -8 -7 ------- Run | Jun Mat Mat Min Mat Gar Fac Peak Influence 4592 | . 82 261 71 644 4592 1871 Initial 1790 | . . 24 71 19 318 1790 Average 1687 | . 17 147 71 253 2221 1745 Maximum Alert Level 5 | . . 1 . 2 5 5 Low Security (%) 15 | 100 100 75 100 44 . . Level 1 5 | . . 24 . 31 1 . Level 2 6 | . . . . 23 5 . Level 3 7 | . . . . . 12 . Level 4 15 | . . . . . 20 16 Level 5 48 | . . . . . 59 83 High Security . | . . . . . . . Max Security . | . . . . . . . Squads Dispatched 16 | . 1 . . 5 . 10 Investigation 7 | . 1 . . 3 . 3 Extermination 1 | . . . . . . 1 Reinforcement 3 | . . . . 1 . 2 Assault 4 | . . . . . . 4 Garrison 1 | . . . . 1 . . Intercept . | . . . . . . . Searches Triggered . | . . . . . . . Construction Impeded 1 | . . . . . . 1 Haulers Reinforced . | . . . . . . . Active Scanning Responses . | . . . . . . . Cargo Convoy Interrupts . | . . . . . . . Stealth | -11 -10 -9 -9 -8 -8 -7 --------- Run | Jun Mat Mat Min Mat Gar Fac Distress Signals 1 | . 1 . . . . . Communications Jammed . | . . . . . . . Distress Signals . | . . . . . . . Times Spotted 126 | . 7 7 3 31 41 37 Peak Tracking Total 9 | . 3 2 5 6 6 9 Tactical Retreats 5 | . . . . . 1 4 Traps | -11 -10 -9 -9 -8 -8 -7 ------- Run | Jun Mat Mat Min Mat Gar Fac Traps Triggered 12 | . 1 . . . 8 3 Indirectly . | . . . . . . . Trap Hack Attempts . | . . . . . . . Triggered . | . . . . . . . Disarmed . | . . . . . . . Reprogrammed . | . . . . . . . Reused . | . . . . . . . Traps Extracted . | . . . . . . . Installed . | . . . . . . . Triggered . | . . . . . . . Machines | -11 -10 -9 -9 -8 -8 -7 ---------- Run | Jun Mat Mat Min Mat Gar Fac Machines Disabled 20 | . . . . 4 12 4 Max in Single Turn 2 | . . . . 2 2 2 Garrison Relay 5 | . . . . . 5 . Phase Generator 1 | . . . . . 1 . Machines Repaired . | . . . . . . . Machines Sabotaged . | . . . . . . . Overloaded Fab Kills . | . . . . . . . Hacking | -11 -10 -9 -9 -8 -8 -7 --------- Run | Jun Mat Mat Min Mat Gar Fac Machines Accessed 16 | . 3 . 1 4 4 4 Terminals 11 | . 3 . . 1 4 3 Fabricators . | . . . . . . . Repair Stations . | . . . . . . . Recycling Units . | . . . . . . . Scanalyzers 3 | . . . . 2 . 1 Garrison Access 1 | . . . . 1 . . Total Hacks 38 | . 8 . 1 14 8 7 Successful 26 | . 7 . 1 11 3 4 Failed 12 | . 1 . . 3 5 3 Catastrophic 3 | . . . . . 1 2 Database Lockouts . | . . . . . . . Manual 19 | . 6 . . 7 . 6 Terminals 27 | . 8 . . 5 8 6 Fabricators . | . . . . . . . Repair Stations . | . . . . . . . Recycling Units . | . . . . . . . Scanalyzers 9 | . . . . 8 . 1 Garrison Access 1 | . . . . 1 . . Terminal Hacks 9 | . 3 . 1 1 3 1 Open Door 1 | . . . 1 . . . Open DSF 1 | . . . . . . 1 Branch Access Points 1 | . 1 . . . . . Recall Investigation 1 | . 1 . . . . . Zone Layout 2 | . 1 . . 1 . . Garrison Registry 1 | . . . . . 1 . Patrol Navigation 1 | . . . . . 1 . Security Stations 1 | . . . . . 1 . Fabricator Hacks . | . . . . . . . Repair Station Hacks . | . . . . . . . Recycling Unit Hacks . | . . . . . . . Scanalyzer 6 | . . . . 6 . . Insert Component 2 | . . . . 2 . . Analyze 4 | . . . . 4 . . Garrison Access Hacks 1 | . . . . 1 . . Unlock Access 1 | . . . . 1 . . Unauthorized Hacks 10 | . 4 . . 3 . 3 Terminals 7 | . 4 . . 1 . 2 Track 2 | . 1 . . . . 1 Botnet 5 | . 3 . . 1 . 1 Fabricators . | . . . . . . . Repair Stations . | . . . . . . . Recycling Units . | . . . . . . . Scanalyzers 3 | . . . . 2 . 1 Extract 3 | . . . . 2 . 1 Garrison Access . | . . . . . . . Data Cores Recovered . | . . . . . . . Used . | . . . . . . . Hacking Detections 12 | . 3 . . 3 3 3 Full Trace Events 6 | . 2 . . 1 1 2 Feedback Events . | . . . . . . . Feedback Blocked . | . . . . . . . Robot Schematics Acquired . | . . . . . . . Robots Built . | . . . . . . . Authchips . | . . . . . . . Time . | . . . . . . . Total Robot Build Rating . | . . . . . . . Part Schematics Acquired 16 | . . . . 9 . 7 Parts Built . | . . . . . . . Authchips . | . . . . . . . Time . | . . . . . . . Total Part Build Rating . | . . . . . . . Parts Repaired . | . . . . . . . Time . | . . . . . . . Parts Recycled . | . . . . . . . Recycled Matter . | . . . . . . . Retrieved Matter . | . . . . . . . Retrieved Components . | . . . . . . . Parts Scanalyzed 2 | . . . . 2 . . Part Schematics Acquired 2 | . . . . 2 . . Parts Damaged . | . . . . . . . Bothacking | -11 -10 -9 -9 -8 -8 -7 ------------ Run | Jun Mat Mat Min Mat Gar Fac Used RIF Installer 1 | . . . . . 1 . Robots Hacked . | . . . . . . . Non-combat . | . . . . . . . Combat . | . . . . . . . Robot Hacks Applied . | . . . . . . . Relay Couplers Released 15 | . . . . . 15 . Machine Destruction 15 | . . . . . 15 . Attached 2 | . . . . . 2 . Fabnet Peak Effective % . | . . . . . . . Robots Rewired 9 | . . . . . 9 . Allies Hacked . | . . . . . . . Hacks Repelled . | . . . . . . . Allies | -11 -10 -9 -9 -8 -8 -7 -------- Run | Jun Mat Mat Min Mat Gar Fac Total Allies 11 | . . . 2 . 9 . Largest Group 7 | . . . 2 2 7 6 Highest-Rated Group 186 | . . . 41 41 186 168 Highest-Rated Ally 40 | . . . 31 31 40 40 Total Orders . | . . . . . . . Ally Attacks 79 | . . . 1 21 39 18 Total Damage 1858 | . . . 22 288 924 624 Kills 20 | . . . . 2 8 10 Allies Corrupted 1 | . . . . . 1 . Allies Melted . | . . . . . . . Intel | -11 -10 -9 -9 -8 -8 -7 ------- Run | Jun Mat Mat Min Mat Gar Fac Robot Analysis Total . | . . . . . . . Derelict Logs Recovered . | . . . . . . . Drone Launches . | . . . . . . . Drone Recoveries . | . . . . . . . Exploration | -11 -10 -9 -9 -8 -8 -7 ------------- Run | Jun Mat Mat Min Mat Gar Fac Turns Passed 9097 | 56 586 241 110 1140 5994 970 Spaces Moved 3973 | 29 214 126 87 1292 1658 567 Core 113 | 29 65 . . . . 19 Treads 1513 | . . . . . 1312 201 Legs 575 | . 149 126 87 213 . . Wheels . | . . . . . . . Hover 347 | . . . . . . 347 Flight 1425 | . . . . 1079 346 . Fastest Speed 22 | 50 120 120 120 29 29 22 Average Speed 113 | 191 238 120 120 57 137 118 Slowest Speed 700 | 250 450 120 120 370 317 700 Overloaded Moves 173 | . . . . . . 173 Propulsion Burnouts 1 | . . . . . . 1 Robots Hopped 2 | . . . . 2 . . Cave-ins Triggered 2 | . . . . . 2 . Exploration Rate (%) 39 | 5 34 18 34 77 98 11 Regions Visited 6 Branch Regions 1 Pre-discovered Areas . | . . . . . . . Known Exits Taken 5 | 1 1 1 1 1 . . Unknown Exits Taken . | . . . . . . . Scrap Searched . | . . . . . . . Spaces Dug 47 | . . . . . 44 3 Terrain Destroyed 303 | . 3 . . 80 193 27 Melee 42 | . . . . . 40 2 Projectile 11 | . . . . . 10 1 AOE 250 | . 3 . . 80 143 24 Terrain Rammed 3 | . . . . . 3 . Walls Destroyed . | . . . . . . . Machines Disabled . | . . . . . . . Actions | -11 -10 -9 -9 -8 -8 -7 --------- Run | Jun Mat Mat Min Mat Gar Fac Total 7802 | 30 260 168 90 1556 4942 756 Wait 3104 | . 15 4 2 119 2910 54 Move 3964 | 28 213 125 86 1288 1657 567 Hop 2 | . . . . 2 . . Pick Up 21 | . . 1 1 4 11 4 Fast Attach 112 | 2 12 3 . 31 29 35 Attach 21 | . . . . 6 7 8 Detach 7 | . . . . 3 2 2 Swap 29 | . 2 5 . 6 12 4 Drop 94 | . 6 6 . 37 28 17 Fire 242 | . 12 23 1 60 98 48 Melee 129 | . . . . . 116 13 Ram 7 | . . . . . 3 4 Kick 1 | . . 1 . . . . Crush . | . . . . . . . Escape Stasis 34 | . . . . . 34 . Rewire 35 | . . . . . 35 . Trap . | . . . . . . . Miscellaneous . | . . . . . . . Route ------- -11/Junkyard -10/Materials (discovered 2 exits: *Mat / Min) -9/Materials -9/Mines -8/Materials (discovered 3 exits: *Fac x2 / Gar) -8/Garrison (discovered 3 exits: *Fac x3) -7/Factory (discovered 1 exit: *Fac) History --------- Turn | Location | Event 22 | -11/Junkyard | Identified exit to Materials 22 | -11/Junkyard | Discovered exit to Materials (range 15) 57 | -11/Junkyard | Entered Materials 57 | -10/Materials | Evolved 1 slot: Propulsion x1 303 | -10/Materials | Build established: Hacker-Mutant 450 | -10/Materials | Identified exit to Mines 632 | -10/Materials | Identified exit to Materials 632 | -10/Materials | Discovered exit to Materials (range 7) 643 | -10/Materials | Entered another Materials area 643 | -9/Materials | Evolved 2 slots: Propulsion x1, Utility x1 872 | -9/Materials | Identified exit to Mines 872 | -9/Materials | Discovered exit to Mines (range 10) 884 | -9/Materials | Entered Mines 900 | -9/Mines | Found the Drone Emporium 904 | -9/Mines | Found Prototype Device 964 | -9/Mines | Identified exit to Materials 964 | -9/Mines | Discovered exit to Materials (range 14) 975 | -9/Mines | Assembled infested the area 980 | -9/Mines | Assisted by a Guerilla fighting off Assembled 994 | -9/Mines | Entered Materials 994 | -8/Materials | Accompanied by 2 allies 994 | -8/Materials | Evolved 2 slots: Power x1, Weapon x1 999 | -8/Materials | Led the pair of lost Derelicts to an unsafe place 1142 | -8/Materials | Identified exit to Factory 1142 | -8/Materials | Discovered exit to Factory (range 12) 1352 | -8/Materials | Identified Thief Drone Bay 1732 | -8/Materials | Discovered exit to Factory (range 10) 2064 | -8/Materials | Build established: Hacker-Sprinter 2078 | -8/Materials | Garrison activated, responded to threat 2134 | -8/Materials | Identified exit to Garrison 2134 | -8/Materials | Entered Garrison 2166 | -8/Garrison | Triggered checkpoint 2215 | -8/Garrison | Garrison Relay disabled 2230 | -8/Garrison | Installed Relay Interface Framework 2287 | -8/Garrison | Discovered exit to Factory (range 10) 2325 | -8/Garrison | Garrison Relay disabled 2514 | -8/Garrison | Spotted B-75 Beast 2523 | -8/Garrison | Destroyed B-75 Beast 2658 | -8/Garrison | Triggered checkpoint 2776 | -8/Garrison | Triggered checkpoint 2805 | -8/Garrison | Build established: Hacker-Mutant 2974 | -8/Garrison | Triggered checkpoint 2994 | -8/Garrison | Garrison Relay disabled 3072 | -8/Garrison | Discovered exit to Factory (range 15) 3286 | -8/Garrison | Core integrity fell below 50% 3438 | -8/Garrison | Triggered checkpoint 6352 | -8/Garrison | Crushed by falling debris 6459 | -8/Garrison | Crushed by falling debris 6462 | -8/Garrison | Core integrity fell below 20% 6463 | -8/Garrison | System corruption reached 10% 6490 | -8/Garrison | Lost 3 parts (1n1u1w) 6498 | -8/Garrison | Learned Factory security intel 6694 | -8/Garrison | Triggered checkpoint 6994 | -8/Garrison | Phase Generator disabled 7082 | -8/Garrison | Spotted B-75 Beast 7182 | -8/Garrison | Triggered checkpoint 7265 | -8/Garrison | Discovered exit to Factory (range 13) 7374 | -8/Garrison | Garrison Relay disabled 7403 | -8/Garrison | Discovered exit to Factory (range 27) 7403 | -8/Garrison | Discovered exit to Factory (range 31) 7403 | -8/Garrison | Discovered exit to Factory (range 70) 7904 | -8/Garrison | Allies destroyed B-75 Beast 7916 | -8/Garrison | Garrison Relay disabled 8128 | -8/Garrison | Entered Factory 8128 | -7/Factory | Accompanied by 6 allies 8128 | -7/Factory | Evolved 2 slots: Utility x2 8219 | -7/Factory | Build established: Scavenger-Mutant 8528 | -7/Factory | First assault squad dispatched 8715 | -7/Factory | Identified exit to Factory 8715 | -7/Factory | Discovered exit to Factory (range 6) 8792 | -7/Factory | Lost 7 parts (1p1n3u2w) 8874 | -7/Factory | Lost 8 parts (1p1n3u3w) 9070 | -7/Factory | Core integrity fell below 50% 9086 | -7/Factory | Core integrity fell below 20% 9098 | -7/Factory | Destroyed by S-27 Virus with Autogun Last Messages --------------- G-50 Soldier destroyed. Imp. Heat Sink destroyed. Penetrated by Slug. Greatsword destroyed. U-05 Engineer builds a Wall. Penetrated by Slug. Gatling Laser destroyed. Penetrated by Slug. Acquired Mace. S-27 Virus destroyed. G-47 Trooper knocked back. G-47 Trooper destroyed. Slug penetrates Wall. Acquired 10 matter. G-47 Trooper suffers critical hit (Smash). Destroyed Lgt. Nuclear Core. Destroyed Imp. Heat Sink. G-47 Trooper system corrupted by crushing effect. P-60 Hacker resets S-27 Virus, system corruption cleaned. G-47 Trooper system terminally corrupted. Map ----- +----------------------------------------------------+ | ?????????????????????????????????????????????# #?? | | ???????????????????????????????????????????### ### | | ???????????????????????????????????????????# # | | ???????????????????????????????????????????# "" # | | ???????????????????????????????????????????# "T # | | ???????????????????????????????????????????# # | | ???????????????????????????????????????????# # | | ???????????????????????????????????????????## ## | | ????????????????????????????????????????????# # | | ?????????????????????????????????????????g??# + | | ??????????????????????????????#######???+#??# # | | ?????????????????????????????? #??? #??# #/ | | ?????????????????????????????#"" #??? #??# # | | ?????????????????????????????#"" ####g#??#g #[ | | ????????????????????##########"" + #??#^ g# | | ???????????????????? #S "## #??# #* | | ???????????????????? # " " ##?# # | | ???????????????????? # """ ### "# | | ???????????????????? = # ; ## | | ??????????????????? " %;; | | ????????????????????? [ " ! %;; """"" | | ???????????????????#########/" [;; """"" | | ???????????????????# # #;;=;; ;; """! ### | | ???????????????????#== #h ! = % =% #?? | | ???????????????????#== %p=; % ! #?? | | ???????????????????#== s@%# ! #?? | | ???????????????????# s![# #?? | | ???????????????????# ############# #######?? | | ???????????????????# #???????????# #???????? | | ???????????????????# #???????????# #???????? | | ???????????????????# #???????????#+#???????? | | ???????????????????# #?????????????????????? | | ???????????????????# #?????????????????????? | | ???????????????????#########?????????????????????? | | ?????????????????????????????????????????????????? | | ?????????????????????????????????????????????????? | | ?????????????????????????????????????????????????? | | ?????????????????????????????????????????????????? | | ?????????????????????????????????????????????????? | | ?????????????????????????????????????????????????? | | ?????????????????????????????????????????????????? | | ?????????????????????????????????????????????????? | | ?????????????????????????????????????????????????? | | ?????????????????????????????????????????????????? | | ?????????????????????????????????????????????????? | | ?????????????????????????????????????????????????? | | ?????????????????????????????????????????????????? | | ?????????????????????????????????????????????????? | | ?????????????????????????????????????????????????? | | ?????????????????????????????????????????????????? | +----------------------------------------------------+ Best States ------------- Heat Dissipation 94 Coolant Potential 65 Energy Generation 30 Energy Capacity 505 Matter Stores 300 Matter Capacity 300 Sight Range 16 Robot Scan Range 15 Terrain Scan Density 10 Additional Mass Support 6 Armor Coverage 225 Resistance: KI 65 Resistance: TH 35 Resistance: EX 35 Resistance: EM 35 Resistance: I 35 Resistance: S 35 Resistance: P 35 Weapon Shielding 66 Weapon Cycling 20 Evasion (%) 64 Targeting Accuracy 8 Target Analysis 5 Armor Integrity Analysis 30 Recoil Reduction 3 Kinecelleration 40 Offensive Hacking 20 Relay Coupler Types 1 Relay Coupler Value 35 Item Schematics ----------------- Great Maul | -8/Materials | Scanalyzed Gauss Rifle | -8/Materials | Scanalyzed Minigun | -8/Materials | Extracted EMP Blaster | -8/Materials | Extracted Lgt. Assault Rifle | -8/Materials | Extracted Flak Cannon | -8/Materials | Extracted Cryofiber Web | -8/Materials | Extracted Hacking Suite | -8/Materials | Extracted Hrd. Light Armor Plating | -8/Materials | Extracted Hrd. Heavy Armor Plating | -7/Factory | Extracted Lgt. Nuclear Core | -7/Factory | Extracted Armor Integrity Analyzer | -7/Factory | Extracted Thermal Generator | -7/Factory | Extracted Com. Battery | -7/Factory | Extracted Imp. Terrain Scan Processor | -7/Factory | Extracted Trap Scanner | -7/Factory | Extracted Robot Schematics ------------------ None Fabricated ------------ Nothing Alien Tech Used ----------------- None Achievements -------------- None Challenges ------------ None Game ------ Seed beanlard Manual? 1 Play Time 01:58:01 Cumulative 2649.0 hours Start 2024.02.18 @ 03:53:03 End 2024.02.19 @ 18:46:13 Sessions 1 Manual Loads 0 Difficulty Explorer Special Mode None Game No. 87 Rogue 0 Adventurer 0 Explorer 87 Win Type - Total 6 Types 3/0/1/2/0/0/0/0/0 Lore% 62 Gallery% 89 Achievement% 100 Wizard Run 0 Options --------- ASCII 0 Keyboard 0 Movement Mouse Keybinds 0 Fullscreen 0 Font 32/Smallcaps Map View 76x50 Tactical HUD 0 Map Filters NONE Filters NONE Steam 1 RUN: 36f245d9-02dc-4181-ad56-7db1c9a2ef56